bitfinex/quotes_ETHUSD_20240917
["timestamp","ask_amount","ask_price","bid_price","bid_amount"]
[1726593519301,2.19643903,2369.4,2368.8,4.93134637]
[1726593519508,2.19643903,2369.4,2368.9,4.22128]
[1726593519719,2.19643903,2369.4,2369.0,4.22109]
[1726593520197,2.91555562,2369.4,2369.0,8.44218]
[1726593520402,2.91555562,2369.4,2369.0,4.22109]
[1726593520933,2.91555562,2369.4,2369.0,4.22108]
[1726593521253,2.19643903,2369.4,2369.0,4.22108]
[1726593521407,2.19643903,2369.4,2369.1,4.22094]
[1726593521606,2.359,2369.5,2369.2,4.22081]
[1726593521607,4.55543903,2369.5,2369.2,4.22081]
[1726593522007,2.19643903,2369.6,2369.2,4.22073]
[1726593522251,2.19643903,2369.6,2369.3,4.22053]
[1726593522399,2.19643903,2369.6,2369.3,4.22064]
[1726593522603,2.19643903,2369.7,2369.3,4.22064]
[1726593523226,4.60483903,2369.8,2369.3,8.44118]
[1726593523431,4.60483903,2369.8,2369.4,4.22043]
[1726593523620,4.60483903,2369.8,2369.5,4.22022]
[1726593523813,4.60589874,2369.8,2369.4,4.22046]
[1726593524148,2.19749874,2369.7,2369.4,4.22046]
[1726593524445,2.74749874,2369.7,2369.2,4.22079]
[1726593524601,2.19749874,2369.6,2369.2,4.22079]
[1726593524807,2.74749874,2369.7,2369.2,4.22079]
[1726593525104,0.55,2369.5,2369.1,4.22094]
[1726593525312,0.55,2369.5,2369.0,4.22105]
[1726593525721,0.55,2369.5,2369.1,4.22094]
[1726593525914,2.19749874,2369.6,2369.1,4.22094]
[1726593526122,2.19749874,2369.7,2369.4,4.22047]
[1726593526507,2.19749874,2369.7,2369.3,4.22064]
[1726593526719,2.19749874,2369.7,2369.5,4.22029]
[1726593526955,2.19749874,2369.8,2369.5,3.180285]
[1726593527103,2.19749874,2370.0,2369.8,4.21976]
[1726593527308,2.19749874,2370.1,2369.8,4.21976]
[1726593527549,4.68669874,2370.2,2369.8,4.21965]
[1726593528052,2.19749874,2370.1,2369.8,4.21965]
[1726593528259,4.68669874,2370.2,2369.8,4.21965]
[1726593528435,2.4892,2370.2,2369.9,4.21944]
[1726593528606,2.19723553,2370.2,2369.9,4.21944]
[1726593528808,2.19723553,2370.2,2369.8,4.21975]
[1726593529010,2.19723553,2370.2,2369.8,8.43943]
[1726593529236,2.19723553,2370.2,2369.9,4.21958]
[1726593529439,2.19773201,2370.2,2369.8,4.21967]
[1726593530014,2.19773201,2370.2,2369.8,4.21966]
[1726593530351,3.0193804,2370.2,2369.8,4.21966]
[1726593530910,3.0193804,2370.2,2369.8,8.43934]
[1726593531407,3.0193804,2370.2,2369.8,4.21966]
[1726593531839,2.19773201,2370.2,2370.0,4.21939]
[1726593532144,2.82486683,2370.3,2370.0,4.21939]
[1726593532649,2.19773201,2370.2,2370.0,4.21939]
[1726593532850,2.82486683,2370.3,2370.0,4.21939]
[1726593533019,2.82486683,2370.3,2370.1,4.21919]
[1726593533534,0.62713482,2370.3,2370.1,10.90936]
[1726593533740,0.62713482,2370.3,2370.1,2.471]
[1726593534060,0.62713482,2370.3,2370.2,8.4381]
[1726593535050,0.62713482,2370.3,2370.2,4.21905]
[1726593535343,0.62713482,2370.3,2370.2,8.4381]
[1726593535555,2.90503482,2370.3,2369.7,2.3085]
[1726593535729,5.10399587,2370.3,2369.8,4.21962]
[1726593535924,5.10399587,2370.3,2369.7,6.52842]
[1726593536119,2.19896105,2370.2,2369.8,4.21975]
[1726593536329,2.19896105,2370.1,2369.8,4.21975]
[1726593536522,2.19896105,2370.1,2369.7,2.3085]
[1726593537014,0.44122815,2370.0,2369.7,6.52835]
[1726593537348,2.6401892,2370.0,2369.7,6.52835]
[1726593537755,2.6401892,2370.0,2369.8,4.21976]
[1726593537912,2.6401892,2370.0,2369.7,6.52842]
[1726593538326,2.64094299,2370.0,2369.7,6.52842]
[1726593538946,2.64094299,2370.0,2369.7,6.52844]
[1726593539932,2.64094299,2370.0,2369.7,4.21994]
[1726593540133,2.64094299,2370.0,2369.9,4.21958]
[1726593540352,0.44122815,2370.0,2369.9,6.57058]
[1726593541160,0.44122815,2370.0,2369.9,11.869193]
[1726593541666,2.38573784,2370.3,2370.1,4.21913]
[1726593541957,0.186023,2370.3,2370.2,4.21905]
[1726593542154,0.62722205,2370.3,2370.2,8.4381]
[1726593545667,0.62722205,2370.3,2370.1,4.21911]
[1726593545960,0.62722205,2370.3,2370.0,4.21928]
[1726593546150,1.15955321,2370.3,2370.0,4.21928]
[1726593546325,3.36034277,2370.3,2370.0,4.21928]
[1726593546521,3.36034277,2370.3,2369.8,4.21963]
[1726593546721,3.36034277,2370.3,2370.0,4.21938]
[1726593546928,3.36034277,2370.3,2369.9,4.21949]
[1726593547158,2.82801161,2370.3,2370.1,9.15048637]
[1726593547383,0.62722205,2370.3,2370.2,8.4381]
[1726593547658,0.62722205,2370.3,2370.2,10.7508]
[1726593548570,0.62722205,2370.3,2370.2,4.21905]
[1726593548939,0.62722205,2370.3,2370.2,8.4381]
[1726593549166,0.62722205,2370.3,2370.2,9.28191]
[1726593549459,0.186023,2370.3,2370.2,9.28191]
[1726593549665,0.62730951,2370.3,2370.2,9.28191]
[1726593550362,0.62730951,2370.3,2370.2,8.4381]
[1726593550569,0.62730951,2370.3,2370.2,11.4381]
[1726593550726,0.62730951,2370.3,2370.2,13.7302]
[1726593551372,0.62730951,2370.3,2370.2,17.94925]
[1726593551665,0.62730951,2370.3,2370.2,13.7302]
[1726593551972,7.56161389,2370.8,2370.7,4.21816]
[1726593552272,6.08049959,2371.4,2371.0,4.21762]
[1726593552273,2.2003928,2371.1,2371.0,4.21762]
[1726593552487,2.2003928,2371.2,2370.9,4.21779]
[1726593552634,2.2003928,2371.2,2370.8,4.2179]
[1726593552635,2.2003928,2371.1,2370.8,4.2179]
[1726593552834,2.2003928,2371.0,2370.8,4.2179]
[1726593553031,2.2003928,2371.1,2370.8,4.21789]
[1726593553347,2.2003928,2371.0,2370.6,4.21822]
[1726593553542,3.90483988,2371.2,2370.6,4.21822]
[1726593553543,2.42043208,2370.9,2370.6,4.21822]
[1726593553769,2.2003928,2370.8,2370.4,4.21855]
[1726593554068,2.2003928,2370.8,2370.4,8.43707]
[1726593554252,2.2003928,2370.8,2370.5,4.21843]
[1726593554574,2.2003928,2370.7,2370.6,4.21834]
[1726593554732,2.2003928,2370.8,2370.6,4.21834]
[1726593555094,2.2003928,2370.8,2370.7,8.43632]
[1726593555391,2.2006688,2370.9,2370.8,4.21798]
[1726593555755,2.2006688,2370.9,2370.6,6.51033]
[1726593555756,2.2006688,2370.9,2370.7,4.21814]
[1726593555954,2.20020548,2370.8,2370.6,4.21823]
[1726593556258,2.64047136,2371.0,2370.5,4.21842]
[1726593556259,2.20018557,2370.7,2370.5,4.21842]
[1726593556453,2.20018557,2370.8,2370.5,4.21842]
[1726593556788,2.20018557,2370.8,2370.6,4.21832]
[1726593557092,2.70839271,2370.9,2370.7,4.21816]
[1726593557264,2.70839271,2370.9,2370.8,4.21798]
[1726593557783,2.20018557,2371.0,2370.9,4.2178]
[1726593557985,2.20018557,2371.0,2370.6,4.2182]
[1726593558282,2.20018557,2370.9,2370.5,8.22261412]
[1726593558489,2.20018557,2370.9,2370.6,4.21823]
[1726593558655,2.20018557,2370.9,2370.7,8.22222412]
[1726593558856,2.20018557,2371.0,2370.8,4.21798]
[1726593559097,3.05482325,2371.0,2370.8,4.21798]
[1726593559260,2.20018557,2371.0,2370.9,12.43972412]
[1726593559460,2.20018557,2371.1,2370.9,8.22192412]
[1726593559757,2.20018557,2371.2,2371.1,4.21745]
[1726593559991,2.2000993,2371.3,2371.2,4.21727]
[1726593560203,2.2000993,2371.4,2371.2,8.22139412]
[1726593560402,2.67988729,2371.6,2371.4,4.21691]
[1726593560403,0.0396646,2371.6,2371.4,4.21691]
[1726593560587,2.20019576,2371.5,2371.4,4.00412412]
[1726593560761,2.20019576,2371.5,2371.4,4.21691]
[1726593561163,0.0396646,2371.6,2371.5,4.21674]
[1726593561594,2.23969527,2371.6,2371.5,4.21674]
[1726593562102,2.23969527,2371.6,2371.5,8.43348]
[1726593562258,0.0396646,2371.6,2371.5,4.21674]
[1726593563101,2.23969527,2371.6,2371.5,4.21674]
[1726593563303,0.0396646,2371.6,2371.5,8.43348]
[1726593564571,0.0396646,2371.6,2371.5,4.21674]
[1726593564860,0.0396646,2371.6,2371.4,8.22097412]
[1726593565071,0.0396646,2371.6,2371.4,8.22090412]
[1726593565413,0.0396646,2371.6,2371.4,4.21677]
[1726593565619,0.0396646,2371.6,2371.5,4.21674]
[1726593566628,0.0396646,2371.6,2371.5,8.43348]
[1726593567247,0.0396646,2371.6,2371.5,17.64670362]
[1726593567564,0.0396646,2371.6,2371.5,17.56237841]
[1726593569851,0.0396646,2371.6,2371.5,13.34563841]
[1726593570030,0.0396646,2371.6,2371.5,11.43348]
[1726593571139,0.0396646,2371.6,2371.5,8.43348]
[1726593573263,0.0396646,2371.6,2371.5,4.21674]
[1726593573566,0.0396646,2371.6,2371.5,8.43348]
[1726593573877,0.0396646,2371.6,2371.5,4.21674]
[1726593574168,0.0396646,2371.6,2371.5,8.43348]
[1726593574371,0.0396646,2371.6,2371.5,12.43774641]
[1726593575034,0.0396646,2371.6,2371.5,16.65448641]
[1726593575437,0.0396646,2371.6,2371.5,19.65448641]
[1726593576168,0.0396646,2371.6,2371.5,23.87122641]
[1726593576344,0.0396646,2371.6,2371.5,19.65448641]
[1726593578279,0.0396646,2371.6,2371.5,17.98902]
[1726593578481,0.0396646,2371.6,2371.5,13.77228]
[1726593579110,0.0396646,2371.6,2371.5,8.43348]
[1726593579405,0.0396646,2371.6,2371.5,8.51780671]
[1726593579566,0.0396646,2371.6,2371.5,8.43348]
[1726593579914,0.0396646,2371.6,2371.5,19.84475041]
[1726593582207,0.0396646,2371.6,2371.5,17.93682]
[1726593585087,0.0396646,2371.6,2371.5,8.43348]
[1726593589330,0.0396646,2371.6,2371.5,12.65022]
[1726593589738,0.0396646,2371.6,2371.5,14.90522]
[1726593589894,0.0396646,2371.6,2371.5,17.90522]
[1726593590102,0.0396646,2371.6,2371.5,20.51786341]
[1726593590321,2.4975646,2371.6,2371.5,8.43348]
[1726593590900,0.0396646,2371.6,2371.5,8.43348]
[1726593591095,0.0396646,2371.6,2371.5,12.43760412]
[1726593591398,0.48100379,2371.6,2371.5,12.43760412]
[1726593592643,0.48100379,2371.6,2371.5,8.43348]
[1726593593153,2.6808926,2371.6,2371.5,8.43348]
[1726593595163,2.6808926,2371.6,2371.5,12.43760412]
[1726593595460,2.6865411,2371.6,2371.5,12.43760412]
[1726593596775,0.48100379,2371.6,2371.5,12.43760412]
[1726593599565,3.12764857,2371.6,2371.5,12.43760412]
[1726593599857,5.56844857,2371.6,2371.5,4.21674]
[1726593600058,6.43406865,2371.6,2371.5,4.21674]
[1726593600292,3.78742387,2371.6,2371.5,4.21674]
[1726593600475,3.13152681,2371.6,2371.5,8.43348]
[1726593600652,3.1325915,2371.6,2371.5,8.43348]
[1726593600849,3.1325915,2371.6,2371.5,12.43760412]
[1726593601382,0.48100379,2371.6,2371.5,16.65434412]
[1726593601585,2.69112217,2371.6,2371.5,15.65022]
[1726593601786,2.69112217,2371.6,2371.5,21.88397012]
[1726593601787,2.24982825,2371.6,2371.5,21.88397012]
[1726593601974,0.0396646,2371.6,2371.5,21.88397012]
[1726593602289,0.0396646,2371.6,2371.5,24.30577012]
[1726593602697,2.24982825,2371.6,2371.5,28.52251012]
[1726593602896,0.0396646,2371.6,2371.5,28.52251012]
[1726593607047,0.0396646,2371.6,2371.5,32.73925012]
[1726593607248,0.0396646,2371.6,2371.5,28.52251012]
[1726593608620,0.0396646,2371.6,2371.5,32.73925012]
[1726593608794,0.0396646,2371.6,2371.5,28.52251012]
[1726593609124,0.0396646,2371.6,2371.5,32.73925012]
[1726593610024,2.2122602,2372.0,2371.9,22.17008]
[1726593610202,2.2122602,2372.0,2371.9,24.17519212]
[1726593611882,2.2122602,2372.0,2371.9,21.86919212]
[1726593612080,0.0396646,2372.3,2372.1,4.21567]
[1726593612280,0.0396646,2372.3,2372.2,8.43098]
[1726593613708,2.69263405,2372.3,2372.2,16.65059412]
[1726593613908,2.69263405,2372.3,2372.2,18.31565353]
[1726593614590,0.0396646,2372.3,2372.2,16.65059412]
[1726593614790,2.69263405,2372.3,2372.2,16.65059412]
[1726593615900,0.0396646,2372.3,2372.2,16.65059412]
[1726593616295,2.69263405,2372.3,2372.2,16.65059412]
[1726593616812,0.0396646,2372.3,2372.2,16.65059412]
[1726593617019,2.69263405,2372.3,2372.2,16.65059412]
[1726593617326,2.69263405,2372.3,2372.2,8.43098]
[1726593617637,2.70172801,2372.3,2372.2,4.21549]
[1726593617926,2.70172801,2372.3,2372.2,8.43098]
[1726593619214,0.0396646,2372.3,2372.2,12.64647]
[1726593619417,2.69125854,2372.3,2372.2,12.43510412]
[1726593619639,2.69125854,2372.3,2372.2,8.43098]
[1726593619850,0.0396646,2372.3,2372.2,8.43098]
[1726593620071,6.06994626,2372.3,2372.2,8.43098]
[1726593620264,2.4249646,2372.3,2372.2,8.43098]
[1726593621116,0.0396646,2372.3,2372.2,8.43098]
[1726593621643,2.69130862,2372.3,2372.2,8.43098]
[1726593622114,2.69130862,2372.3,2372.2,12.64647]
[1726593622316,0.0396646,2372.3,2372.2,18.52701941]
[1726593622541,2.24890575,2372.3,2372.2,21.52701941]
[1726593622818,0.0396646,2372.3,2372.2,17.31152941]
[1726593623161,0.0396646,2372.3,2372.2,21.52701941]
[1726593624233,0.0396646,2372.3,2372.2,17.31152941]
[1726593624526,0.0396646,2372.3,2372.2,15.64647]
[1726593624865,2.2486926,2372.3,2372.2,15.64647]
[1726593625071,0.0396646,2372.3,2372.2,11.43098]
[1726593625777,0.0396646,2372.3,2372.2,15.64647]
[1726593626328,2.24789431,2372.3,2372.2,15.64647]
[1726593626875,2.24789431,2372.3,2372.2,8.43098]
[1726593627080,0.0396646,2372.3,2372.2,8.43098]
[1726593627636,2.24764218,2372.3,2372.2,8.43098]
[1726593627837,0.0396646,2372.3,2372.2,8.43098]
[1726593628551,2.68932609,2372.3,2372.2,8.43098]
[1726593629135,3.23932609,2372.3,2372.2,4.21549]
[1726593629372,3.23932609,2372.3,2372.1,4.21566]
[1726593629373,0.5896646,2372.3,2372.1,4.21566]
[1726593629579,2.3388,2372.2,2372.1,4.21558]
[1726593629787,2.94077363,2372.2,2372.1,4.21558]
[1726593629948,2.94077363,2372.2,2371.1,7.28]
[1726593629949,2.8888,2372.1,2371.4,4.21674]
[1726593630136,2.8888,2372.1,2371.8,4.21611]
[1726593630342,2.8888,2372.1,2371.9,4.21601]
[1726593630551,0.34907736,2372.0,2371.9,4.21601]
[1726593630771,0.34907736,2372.0,2371.8,4.21611]
[1726593631073,0.34907736,2372.0,2371.9,4.21602]
[1726593631383,2.65029053,2371.9,2371.8,4.21611]
[1726593631560,0.34907736,2372.0,2371.8,4.21612]
[1726593631769,0.34907736,2372.0,2371.9,4.21602]
[1726593632136,0.34907736,2372.0,2371.9,0.08261993]
[1726593632556,0.34907736,2372.0,2371.9,4.29863993]
[1726593632870,0.34907736,2372.0,2371.9,0.08261993]
[1726593636178,0.34907736,2372.0,2371.9,4.29863993]
[1726593636362,5.97525991,2372.1,2371.9,4.29863993]
[1726593636567,5.97525991,2372.1,2371.9,0.08261993]
[1726593636997,3.08645991,2372.0,2371.9,0.08261993]
[1726593637676,5.97525991,2372.1,2372.0,4.21585]
[1726593637873,3.08645991,2372.1,2372.0,8.4317]
[1726593638075,3.08645991,2372.1,2372.0,8.51330945]
[1726593638274,5.41935991,2372.2,2372.1,4.21567]
[1726593638594,3.08645991,2372.2,2372.1,8.51289991]
[1726593638779,3.12742629,2372.3,2372.2,8.43098]
[1726593639263,0.4810796,2372.3,2372.2,10.8739864]
[1726593639654,0.4810796,2372.3,2372.2,15.0894764]
[1726593640293,2.68679298,2372.3,2372.2,18.0894764]
[1726593640589,0.4810796,2372.3,2372.2,18.06250899]
[1726593640764,2.68720671,2372.3,2372.2,18.06250899]
[1726593641596,0.4810796,2372.3,2372.2,18.06250899]
[1726593642278,2.68834896,2372.3,2372.2,18.06250899]
[1726593642481,2.68827533,2372.3,2372.2,18.06250899]
[1726593642694,2.68827533,2372.3,2372.2,24.59649899]
[1726593642897,2.68827533,2372.3,2372.2,20.38100899]
[1726593642898,0.4810796,2372.3,2372.2,20.38100899]
[1726593643213,0.4810796,2372.3,2372.2,11.5124864]
[1726593643970,3.12968617,2372.3,2372.2,11.5124864]
[1726593644195,0.4810796,2372.3,2372.2,11.5124864]
[1726593644395,0.0396646,2372.3,2372.2,11.5124864]
[1726593644600,2.68827117,2372.3,2372.2,11.5124864]
[1726593647010,2.68995301,2372.3,2372.2,11.5124864]
[1726593647171,0.0396646,2372.3,2372.2,8.5124864]
[1726593647381,5.66346305,2372.3,2372.2,0.0815064]
[1726593647682,5.95489332,2372.3,2372.2,0.0815064]
[1726593647884,2.8524646,2372.3,2372.2,0.0815064]
[1726593648282,0.55,2372.2,2371.9,4.21592]
[1726593648484,3.09151462,2372.0,2371.9,4.21592]
[1726593648709,3.82085125,2372.0,2371.9,4.21592]
[1726593648986,3.09151462,2372.1,2372.0,4.21585]
[1726593649191,5.95431624,2372.3,2372.0,4.21585]
[1726593649541,3.65185164,2372.2,2372.0,4.21585]
[1726593649883,5.95431624,2372.3,2372.0,4.21585]
[1726593650123,3.65185164,2372.2,2372.0,4.21585]
[1726593650280,4.24728326,2372.2,2372.0,4.21585]
[1726593651522,0.59543162,2372.2,2372.0,4.21585]
[1726593651723,3.09290079,2372.1,2371.9,4.21601]
[1726593652025,3.09284744,2372.0,2371.9,4.21601]
[1726593652389,2.266,2371.9,2371.1,10.57746412]
[1726593652589,4.30682643,2372.1,2371.1,10.57746412]
[1726593652590,3.09212607,2371.8,2371.7,12.43678412]
[1726593652872,12.04014752,2372.1,2371.8,8.4324]
[1726593652873,3.09212607,2371.9,2371.8,8.4324]
[1726593653127,3.09212607,2372.1,2372.0,4.21585]
[1726593653285,4.06724346,2372.1,2372.0,4.21585]
[1726593653719,4.06724346,2372.1,2371.9,4.21597]
[1726593654017,3.0917639,2372.0,2371.8,4.21603]
[1726593654182,5.46387017,2371.9,2371.8,4.21603]
[1726593655524,5.46387017,2371.9,2371.6,4.21655]
[1726593655827,5.46387017,2371.9,2371.4,4.21678]
[1726593655828,3.63815719,2371.8,2371.5,4.21673]
[1726593656527,3.09125425,2371.7,2371.5,4.21673]
[1726593656728,3.09116348,2371.7,2371.5,4.21673]
[1726593657295,2.64895617,2371.6,2371.5,4.21673]
[1726593658233,3.6375505,2371.8,2371.5,4.21664]
[1726593658435,2.64834121,2371.6,2371.5,4.21664]
[1726593658937,3.09116348,2371.7,2371.5,4.21664]
[1726593659234,3.09116348,2371.7,2371.5,4.29570839]
[1726593659392,2.64632341,2371.6,2371.5,4.29570839]
[1726593660034,3.08774318,2371.6,2371.5,4.29570839]
[1726593660231,0.44141977,2371.6,2371.5,4.29570839]
[1726593660444,3.08772711,2371.6,2371.5,12.94614335]
[1726593660598,3.08772711,2371.6,2371.5,8.51244839]
[1726593660797,0.44141977,2371.6,2371.5,8.51244839]
[1726593661035,3.08815059,2371.6,2371.5,8.51244839]
[1726593661623,3.08815059,2371.6,2371.5,0.07906839]
[1726593661818,3.39696565,2371.6,2371.5,0.07906839]
[1726593662192,3.69763483,2371.6,2371.5,0.07906839]
[1726593662396,6.78548745,2371.6,2371.0,4.21746]
[1726593662637,5.0423314,2371.2,2370.9,4.21772]
[1726593662796,5.0423314,2371.2,2371.0,4.21761]
[1726593663196,2.6449314,2371.3,2371.1,4.21745]
[1726593663432,2.6449314,2371.3,2371.2,4.21727]
[1726593663793,2.6449314,2371.4,2371.2,4.21727]
[1726593664312,2.6449314,2371.5,2371.2,4.21727]
[1726593664644,3.58797329,2371.5,2371.2,4.21727]
[1726593664844,2.6449314,2371.4,2371.2,4.21727]
[1726593665046,2.6449314,2371.4,2371.2,8.43445]
[1726593665252,2.64464458,2371.4,2371.2,4.21718]
[1726593665745,3.58768647,2371.5,2371.3,4.21702]
[1726593665946,2.64464458,2371.5,2371.4,8.43382]
[1726593666135,0.44141977,2371.6,2371.5,8.43348]
[1726593666647,2.6447016,2371.6,2371.5,8.43348]
[1726593667652,2.6447016,2371.6,2371.5,16.65434412]
[1726593667898,2.20328183,2371.7,2371.6,8.43312]
[1726593669363,2.20328183,2371.7,2371.4,4.21677]
[1726593669364,3.52369264,2371.7,2371.4,4.21677]
[1726593669561,2.64503278,2371.6,2371.5,4.21671]
[1726593669851,2.64503278,2371.6,2371.4,4.21677]
[1726593670011,2.64484937,2371.6,2371.4,4.21677]
[1726593670214,2.64484937,2371.6,2370.9,2.2945]
[1726593670437,2.20486189,2371.2,2371.1,8.4348]
[1726593670937,2.20486189,2371.2,2371.1,8.50670633]
[1726593671548,2.64484937,2371.5,2371.1,2.36480633]
[1726593671758,5.9097576,2371.7,2371.1,2.36480633]
[1726593671759,2.20453782,2371.4,2371.3,12.43830412]
[1726593671966,2.20514104,2371.5,2371.4,2.2929]
[1726593672182,2.20514104,2371.7,2371.6,12.64968]
[1726593672334,2.20514104,2371.7,2371.6,8.5047785]
[1726593672677,8.00607046,2371.9,2371.8,4.2162]
[1726593673039,8.00607046,2371.9,2371.8,4.2877594]
[1726593673360,5.36122109,2371.9,2371.8,0.0715594]
[1726593673529,6.25005224,2371.9,2371.8,4.2162]
[1726593674075,6.25005224,2371.9,2371.8,4.28771161]
[1726593674997,8.64115224,2371.9,2371.8,0.07151161]
[1726593675277,8.64115224,2371.9,2371.7,4.21638]
[1726593675278,0.55,2371.8,2371.7,4.21638]
[1726593675435,11.7311788,2371.9,2371.8,4.2162]
[1726593675865,6.36995771,2371.9,2371.8,4.2162]
[1726593676557,0.55,2371.8,2371.4,4.2168]
[1726593676757,3.47375176,2371.7,2371.5,4.21662]
[1726593677054,0.38299312,2371.7,2371.5,4.2167]
[1726593677260,3.47375176,2371.7,2371.5,4.2167]
[1726593677479,0.40237518,2371.6,2371.5,4.2167]
[1726593677848,0.40237518,2371.6,2371.5,8.43344]
[1726593678046,2.64928344,2371.6,2371.5,4.2167]
[1726593678376,2.64928344,2371.6,2371.5,8.43344]
[1726593678869,2.64928344,2371.6,2371.5,4.2167]
[1726593679075,3.47375176,2371.7,2371.6,4.21656]
[1726593679274,0.38299312,2371.7,2371.5,4.2167]
[1726593679494,0.38299312,2371.7,2371.5,4.21664]
[1726593679647,0.38299312,2371.7,2371.6,4.21656]
[1726593679848,5.48191695,2371.9,2371.7,4.21629]
[1726593680056,3.09081695,2371.8,2371.7,4.21629]
[1726593680399,0.55,2371.8,2371.6,4.21656]
[1726593680675,0.55,2371.5,2371.3,4.21696]
[1726593680875,2.93468169,2371.4,2371.3,4.21696]
[1726593681182,2.93468169,2371.4,2371.3,8.43405]
[1726593681403,2.64951169,2371.5,2371.4,8.43382]
[1726593681554,5.51038032,2371.8,2371.6,4.21652]
[1726593681939,3.09108032,2371.7,2371.6,4.21652]
[1726593682277,5.51038032,2371.8,2371.6,4.21652]
[1726593682576,0.24193,2371.7,2371.6,4.21652]
[1726593682775,5.51038032,2371.8,2371.7,4.21638]
[1726593683511,3.53258907,2371.8,2371.7,8.43276]
[1726593683671,0.44150875,2371.8,2371.7,8.43276]
[1726593686217,0.44150875,2371.8,2371.7,4.21638]
[1726593686417,3.88584798,2371.8,2371.7,4.21638]
[1726593687397,0.79476766,2371.8,2371.7,4.21638]
[1726593687597,3.88584798,2371.8,2371.7,4.21638]
[1726593687813,3.53258907,2371.8,2371.7,4.21638]
[1726593689031,3.53258907,2371.8,2371.7,4.28312769]
[1726593689233,3.53258907,2371.8,2371.7,8.49950769]
[1726593689536,3.53258907,2371.8,2371.7,10.77920769]
[1726593689537,3.09108032,2371.8,2371.7,10.77920769]
[1726593689700,2.65104303,2371.8,2371.7,10.77920769]
[1726593689901,2.65104303,2371.9,2371.8,12.6486]
[1726593690123,3.09108032,2372.1,2371.8,12.6486]
[1726593690124,2.65104303,2372.0,2371.9,12.64806]
[1726593690490,0.0396646,2372.3,2372.2,4.21549]
[1726593690643,3.13293654,2372.3,2372.2,4.21549]
[1726593690842,1.50001312,2372.3,2372.2,4.28182673]
[1726593691014,4.59333809,2372.3,2372.2,4.28182673]
[1726593691219,1.50001312,2372.3,2372.2,0.06633673]
[1726593691399,1.50001312,2372.3,2372.2,4.28182673]
[1726593691739,5.15449263,2372.3,2372.2,4.28182673]
[1726593691942,1.50001312,2372.3,2372.2,4.28182673]
[1726593692738,5.15449263,2372.3,2372.2,0.06633673]
[1726593692954,7.41369263,2372.3,2372.2,0.06633673]
[1726593693141,3.75921312,2372.3,2372.2,0.06633673]
[1726593693338,3.75921312,2372.3,2372.1,4.21564]
[1726593693511,4.46991165,2372.2,2372.1,4.21564]
[1726593693849,0.81397762,2372.2,2372.1,8.43131]
[1726593694141,4.46991165,2372.2,2372.1,4.21564]
[1726593694540,4.4698225,2372.2,2372.1,4.21564]
[1726593694853,4.4693913,2372.2,2372.1,4.21564]
[1726593695352,0.81397762,2372.2,2372.1,4.21564]
[1726593695565,0.81397762,2372.2,2372.1,8.43131]
[1726593695723,3.69507828,2372.3,2372.2,4.21549]
[1726593696055,0.0396646,2372.3,2372.2,8.43098]
[1726593696266,0.0396646,2372.3,2372.2,12.64647]
[1726593696762,3.13491366,2372.3,2372.2,12.64647]
[1726593696919,0.0396646,2372.3,2372.2,12.64647]
[1726593697668,3.13491366,2372.3,2372.2,8.43098]
[1726593698044,0.35315597,2372.3,2372.2,8.43098]
[1726593698255,3.44840503,2372.3,2372.2,4.21549]
[1726593698564,2.74055597,2372.3,2372.2,4.21549]
[1726593699669,5.83548283,2372.3,2372.2,4.21549]
[1726593699833,3.44808283,2372.3,2372.2,4.21549]
[1726593700176,3.44808283,2372.3,2372.1,4.21566]
[1726593700177,0.35315597,2372.3,2372.1,4.2156]
[1726593700327,3.0947109,2372.2,2372.1,4.2156]
[1726593700730,3.0947109,2372.2,2372.1,8.43127]
[1726593700925,3.44786687,2372.3,2372.2,4.21549]
[1726593701363,3.44694389,2372.3,2372.2,4.21549]
[1726593702385,3.44694389,2372.3,2372.2,8.43098]
[1726593702693,0.0396646,2372.3,2372.2,8.43098]
[1726593702868,0.0396646,2372.3,2372.2,14.93557]
[1726593703065,2.69139203,2372.3,2372.2,14.93557]
[1726593703290,2.69100074,2372.3,2372.2,14.93557]
[1726593703955,2.69100074,2372.3,2372.2,14.99719887]
[1726593704152,0.0396646,2372.3,2372.2,14.99719887]
[1726593705999,0.48108452,2372.3,2372.2,20.31890217]
[1726593706289,2.68830138,2372.3,2372.2,20.31890217]
[1726593707159,2.24688146,2372.3,2372.2,20.31890217]
[1726593708391,0.0396646,2372.3,2372.2,20.31890217]
[1726593710000,0.0396646,2372.3,2372.2,24.53439217]
[1726593710571,0.0396646,2372.3,2372.2,28.53851629]
[1726593712971,0.0396646,2372.3,2372.2,24.53439217]
[1726593713300,0.0396646,2372.3,2372.2,20.31890217]
[1726593715001,0.0396646,2372.3,2372.2,28.53851629]
[1726593715906,0.0396646,2372.3,2372.2,32.75400629]
[1726593719902,0.0396646,2373.0,2372.2,32.75400629]
[1726593719903,0.0396646,2373.0,2372.9,19.2157]
[1726593720109,0.0396646,2373.0,2372.9,28.56285412]
[1726593720290,0.0396646,2373.0,2372.9,28.61953788]
[1726593720995,2.20313276,2373.7,2373.0,3.0]
[1726593721199,2.20313276,2373.7,2372.9,9.40383788]
[1726593721200,0.0396646,2373.8,2373.7,19.21802]
[1726593721360,0.0396646,2373.8,2373.7,12.63849]
[1726593721564,0.0396646,2373.8,2373.7,12.69456307]
[1726593722668,0.0396646,2373.8,2373.7,14.91893538]
[1726593723179,0.0396646,2373.8,2373.7,22.13176538]
[1726593723373,0.0396646,2373.8,2373.7,24.59676538]
[1726593724000,0.0396646,2373.8,2373.7,28.80959538]
[1726593724206,0.0396646,2373.8,2373.7,24.59676538]
[1726593725577,0.0396646,2373.8,2373.7,20.38393538]
[1726593726005,0.0396646,2373.8,2373.7,24.59676538]
[1726593728469,0.0396646,2373.8,2373.7,28.80959538]
[1726593728888,0.0396646,2373.8,2373.7,24.59676538]
[1726593729090,0.0396646,2373.8,2373.7,28.80959538]
[1726593729269,0.0396646,2373.8,2373.7,24.59676538]
[1726593729869,0.0396646,2373.8,2373.7,28.80959538]
[1726593731276,0.0396646,2373.8,2373.7,24.59676538]
[1726593731496,0.0396646,2373.8,2373.7,28.80959538]
[1726593731908,0.0396646,2373.8,2373.7,24.59676538]
[1726593732301,0.0396646,2373.8,2373.7,28.80959538]
[1726593733957,0.0396646,2373.8,2373.7,20.38393538]
[1726593734240,0.0396646,2373.8,2373.7,8.48173307]
[1726593735091,0.0396646,2373.8,2373.7,12.69456307]
[1726593737207,0.0396646,2373.8,2373.7,16.90739307]
[1726593737408,0.0396646,2373.8,2373.7,12.69456307]
[1726593738523,2.4989646,2373.8,2373.7,12.69456307]